Workbook

Sheet F1A
G1: 8. Memorijal Mustafa Hadžović 2017
G2: F1-A - REZULTATI / RESULTS
A4: Entry No | B4: First and last name | D4: Country | E4: FAI Licence | F4: Round | M4: Total | N4: Flyoff | Q4: Total | R4: No.
F5: 1 | G5: 2 | H5: 3 | I5: 4 | J5: 5 | K5: 6 | L5: 7 | N5: 1 | O5: 2 | P5: 3
A6: 5 | B6: Miroslav Mandichev | D6: BUL | E6: BUL 00670 | F6: 240 | G6: 180 | H6: 155 | I6: 180 | J6: 180 | M6: =SUM(F6:L6) -> 935 | Q6: =SUM(M6:O6) -> 935 | R6: 1
A7: 8 | B7: Robert Bjelajac | D7: BIH | E7: F-401 | F7: 101 | G7: 180 | H7: 180 | I7: 68 | J7: 180 | M7: =SUM(F7:L7) -> 709 | Q7: =SUM(M7:O7) -> 709 | R7: 2
A8: 16 | B8: Faik Čičak | D8: BIH | E8: F- | F8: 240 | G8: 168 | H8: 45 | I8: 120 | J8: 133 | M8: =SUM(F8:L8) -> 706 | Q8: =SUM(M8:O8) -> 706 | R8: 3
A9: 3 | B9: Bakir Limo | C9: JR | D9: BIH | E9: F-475 | F9: 209 | G9: 131 | H9: 0 | I9: 0 | J9: 0 | M9: =SUM(F9:L9) -> 340 | Q9: =SUM(M9:O9) -> 340 | R9: 4
A10: 14 | B10: Miloš Budimčić | D10: BIH | E10: F-456 | F10: 146 | G10: 118 | H10: 75 | I10: 0 | J10: 0 | M10: =SUM(F10:L10) -> 339 | Q10: =SUM(M10:O10) -> 339 | R10: 5
A11: 4 | B11: Elmin Kerkez | D11: BIH | E11: F-076 | F11: 114 | G11: 42 | H11: 170 | I11: 0 | J11: 0 | M11: =SUM(F11:L11) -> 326 | Q11: =SUM(M11:O11) -> 326 | R11: 6
A12: 15 | B12: Sara Budimčić | C12: JR | D12: BIH | E12: F-459 | F12: 240 | G12: 85 | H12: 0 | I12: 0 | J12: 0 | M12: =SUM(F12:L12) -> 325 | Q12: =SUM(M12:O12) -> 325 | R12: 7
A13: 9 | B13: Željko Marić | D13: BIH | E13: F-109 | F13: 129 | G13: 13 | H13: 0 | I13: 0 | J13: 0 | M13: =SUM(F13:L13) -> 142 | Q13: =SUM(M13:O13) -> 142 | R13: 8
A14: 2 | B14: Faruk Burić | C14: JR | D14: BIH | E14: F-476 | F14: 15 | G14: 0 | H14: 0 | I14: 0 | J14: 0 | M14: =SUM(F14:L14) -> 15 | Q14: =SUM(M14:O14) -> 15 | R14: 9
A15: 1 | B15: Adin Ramadanović | D15: BIH | E15: F-116 | F15: 0 | G15: 0 | H15: 0 | I15: 0 | J15: 0 | M15: =SUM(F15:L15) -> 0 | Q15: =SUM(M15:O15) -> 0 | R15: 10
A16: 13 | M16: =SUM(F16:L16) -> 0 | Q16: =SUM(M16:O16) -> 0 | R16: 11
A17: 12 | M17: =SUM(F17:L17) -> 0 | Q17: =SUM(M17:O17) -> 0 | R17: 12
A18: 10 | M18: =SUM(F18:L18) -> 0 | Q18: =SUM(M18:O18) -> 0 | R18: 13
A19: 6 | M19: =SUM(F19:L19) -> 0 | Q19: =SUM(M19:O19) -> 0 | R19: 14
A20: 7 | M20: =SUM(F20:L20) -> 0 | Q20: =SUM(M20:O20) -> 0 | R20: 15
A21: 11 | M21: =SUM(F21:L21) -> 0 | Q21: =SUM(M21:O21) -> 0 | R21: 16

Sheet F1B
G1: 8. Memorijal Mustafa Hadžović 2017
G2: F1-B - REZULTATI / RESULTS
A4: Entry No | B4: First and last name | D4: Country | E4: FAI Licence | F4: Round | M4: Total | N4: Flyoff | Q4: Total | R4: No.
F5: 1 | G5: 2 | H5: 3 | I5: 4 | J5: 5 | K5: 6 | L5: 7 | N5: 1 | O5: 2 | P5: 3
A6: 7 | B6: Ismet Yurtseven | D6: TUR | E6: TUR 007 | F6: 228 | G6: 180 | H6: 180 | I6: 180 | J6: 132 | M6: =SUM(F6:L6) -> 900 | Q6: =SUM(M6:O6) -> 900 | R6: 1
A7: 3 | B7: Predrag Šarkinović | D7: BIH | E7: F-056 | F7: 240 | G7: 180 | H7: 30 | I7: 141 | J7: 149 | M7: =SUM(F7:L7) -> 740 | Q7: =SUM(M7:O7) -> 740 | R7: 2
A8: 6 | B8: Soniboj Sabo | D8: CRO | E8: F-080 | F8: 0 | G8: 180 | H8: 180 | I8: 0 | J8: 0 | M8: =SUM(F8:L8) -> 360 | Q8: =SUM(M8:O8) -> 360 | R8: 3
A9: 1 | M9: =SUM(F9:L9) -> 0 | Q9: =SUM(M9:O9) -> 0 | R9: 4
A10: 2 | M10: =SUM(F10:L10) -> 0 | Q10: =SUM(M10:O10) -> 0 | R10: 5
A11: 4 | M11: =SUM(F11:L11) -> 0 | Q11: =SUM(M11:O11) -> 0 | R11: 6
A12: 5 | M12: =SUM(F12:L12) -> 0 | Q12: =SUM(M12:O12) -> 0 | R12: 7
A13: 8 | M13: =SUM(F13:L13) -> 0 | Q13: =SUM(M13:O13) -> 0 | R13: 8
A14: 9 | M14: =SUM(F14:L14) -> 0 | Q14: =SUM(M14:O14) -> 0 | R14: 9
A15: 10 | M15: =SUM(F15:L15) -> 0 | Q15: =SUM(M15:O15) -> 0 | R15: 10
A16: 11 | M16: =SUM(F16:L16) -> 0 | Q16: =SUM(M16:O16) -> 0 | R16: 11
A17: 12 | M17: =SUM(F17:L17) -> 0 | Q17: =SUM(M17:O17) -> 0 | R17: 12

Sheet F1C
G1: 8. Memorijal Mustafa Hadžović 2017
G2: F1-C - REZULTATI / RESULTS
A4: Entry No | B4: First and last name | D4: Country | E4: FAI Licence | F4: Round | M4: Total | N4: Flyoff | Q4: Total | R4: No.
F5: 1 | G5: 2 | H5: 3 | I5: 4 | J5: 5 | K5: 6 | L5: 7 | N5: 1 | O5: 2 | P5: 3
A6: 1 | B6: Andrea Banci | D6: ITA | E6: ITA 10116 | M6: =SUM(F6:L6) -> 0 | Q6: =SUM(M6:O6) -> 0 | R6: 1
A7: 2 | B7: Damjan Žulič | D7: SLO | E7: 164.002 | M7: =SUM(F7:L7) -> 0 | Q7: =SUM(M7:O7) -> 0 | R7: 2
A8: 3 | B8: Giorgio Venuti | D8: ITA | E8: ITA 3143 | M8: =SUM(F8:L8) -> 0 | Q8: =SUM(M8:O8) -> 0 | R8: 3
A9: 4 | B9: Željko Grepl | D9: CRO | E9: CRO 70025 | M9: =SUM(F9:L9) -> 0 | Q9: =SUM(M9:O9) -> 0 | R9: 4

Sheet F1Q
G1: 8. Memorijal Mustafa Hadžović 2017
G2: F1-Q - REZULTATI / RESULTS
A4: Entry No | B4: First and last name | D4: Country | E4: FAI Licence | F4: Round | M4: Total | N4: Flyoff | Q4: Total | R4: No.
F5: 1 | G5: 2 | H5: 3 | I5: 4 | J5: 5 | K5: 6 | L5: 7 | N5: 1 | O5: 2 | P5: 3
A6: 1 | B6: Nedjeljko Zelić | D6: BIH | E6: F-102 | M6: =SUM(F6:L6) -> 0 | Q6: =SUM(M6:O6) -> 0 | R6: 1
A7: 2 | B7: Oton Sabo | D7: BIH | E7: F-103 | M7: 0 | Q7: 0 | R7: 2
A8: 3 | B8: Robert Martinović | D8: BIH | E8: F-112 | M8: 0 | Q8: 0 | R8: 3
A9: 4 | B9: Soniboj Sabo | D9: CRO | E9: F-080 | M9: 0 | Q9: 0 | R9: 4
A10: 5 | B10: Željko Grepl | D10: CRO | E10: CRO 70025 | M10: 0 | Q10: 0 | R10: 5
A11: 6 | B11: Željko Marić | D11: BIH | E11: F-109 | M11: 0 | Q11: 0 | R11: 6
A12: 7 | M12: 0 | Q12: 0 | R12: 7
